[Event "Titled Tuesday Blitz October 11 Late 2022"]
[White "Toncheva, Nadya"]
[Black "Adury, Anant"]
[WhiteFideId "2924056"]
[BlackFideId "30964687"]
[WhiteElo "2101"]
[BlackElo "2318"]
[Result "1/2-1/2"]
[Round "04"]
[TimeControl "180+1"]
[Date "2022.10.12"]
[WhiteClock "0:00:06"]
[BlackClock "0:00:07"]

1. d4 {[%clk 0:03:00]}  Nf6 {[%clk 0:02:55]} 2. c4 {[%clk 0:03:01]}  e6 {[%clk 0:02:56]} 3. Nc3 {[%clk 0:03:01]}  Bb4 {[%clk 0:02:56]} 4. e3 {[%clk 0:03:02]}  O-O {[%clk 0:02:55]} 5. Ne2 {[%clk 0:03:02]}  Nc6 {[%clk 0:02:55]} 6. a3 {[%clk 0:03:02]}  Bxc3+ {[%clk 0:02:56]} 7. Nxc3 {[%clk 0:03:02]}  e5 {[%clk 0:02:56]} 8. d5 {[%clk 0:03:01]}  Ne7 {[%clk 0:02:55]} 9. Bd3 {[%clk 0:02:58]}  d6 {[%clk 0:02:54]} 10. O-O {[%clk 0:02:58]}  a5 {[%clk 0:02:54]} 11. Bd2 {[%clk 0:02:49]}  Bf5 {[%clk 0:02:51]} 12. Bxf5 {[%clk 0:02:46]}  Nxf5 {[%clk 0:02:52]} 13. Qc2 {[%clk 0:02:46]}  Ne7 {[%clk 0:02:48]} 14. b4 {[%clk 0:02:45]}  axb4 {[%clk 0:02:41]} 15. axb4 {[%clk 0:02:46]}  Qd7 {[%clk 0:02:41]} 16. Ra2 {[%clk 0:02:32]}  c6 {[%clk 0:02:37]} 17. dxc6 {[%clk 0:02:28]}  bxc6 {[%clk 0:02:36]} 18. Rfa1 {[%clk 0:02:28]}  Rxa2 {[%clk 0:02:35]} 19. Qxa2 {[%clk 0:02:27]}  d5 {[%clk 0:02:35]} 20. cxd5 {[%clk 0:02:21]}  Nexd5 {[%clk 0:02:24]} 21. Nxd5 {[%clk 0:01:58]}  Nxd5 {[%clk 0:01:54]} 22. Qc4 {[%clk 0:01:31]}  Nb6 {[%clk 0:01:33]} 23. Qc2 {[%clk 0:01:29]}  h5 {[%clk 0:01:24]} 24. Rc1 {[%clk 0:01:22]}  Rd8 {[%clk 0:01:20]} 25. Bc3 {[%clk 0:01:21]}  f6 {[%clk 0:01:18]} 26. h3 {[%clk 0:01:14]}  Qd3 {[%clk 0:01:13]} 27. Qxd3 {[%clk 0:01:05]}  Rxd3 {[%clk 0:01:14]} 28. Kf1 {[%clk 0:01:03]}  Nd5 {[%clk 0:01:04]} 29. Be1 {[%clk 0:01:03]}  Ne7 {[%clk 0:00:59]} 30. Ke2 {[%clk 0:01:02]}  Rd7 {[%clk 0:00:57]} 31. Ra1 {[%clk 0:00:50]}  Kf7 {[%clk 0:00:57]} 32. Ra6 {[%clk 0:00:41]}  g5 {[%clk 0:00:56]} 33. f3 {[%clk 0:00:41]}  h4 {[%clk 0:00:56]} 34. Bf2 {[%clk 0:00:30]}  Rb7 {[%clk 0:00:56]} 35. Be1 {[%clk 0:00:30]}  Ke6 {[%clk 0:00:48]} 36. Bd2 {[%clk 0:00:30]}  Kd7 {[%clk 0:00:41]} 37. Ra8 {[%clk 0:00:28]}  Nd5 {[%clk 0:00:37]} 38. Rf8 {[%clk 0:00:20]}  Ke7 {[%clk 0:00:37]} 39. Rh8 {[%clk 0:00:19]}  Ke6 {[%clk 0:00:37]} 40. Re8+ {[%clk 0:00:18]}  Kf7 {[%clk 0:00:34]} 41. Rc8 {[%clk 0:00:18]}  Nxb4 {[%clk 0:00:35]} 42. Bxb4 {[%clk 0:00:14]}  Rxb4 {[%clk 0:00:35]} 43. Rc7+ {[%clk 0:00:14]}  Kg6 {[%clk 0:00:15]} 44. Rxc6 {[%clk 0:00:15]}  e4 {[%clk 0:00:14]} 45. fxe4 {[%clk 0:00:14]}  Rxe4 {[%clk 0:00:14]} 46. Kf3 {[%clk 0:00:15]}  Rb4 {[%clk 0:00:13]} 47. e4 {[%clk 0:00:15]}  Rb3+ {[%clk 0:00:12]} 48. Kf2 {[%clk 0:00:15]}  Kf7 {[%clk 0:00:12]} 49. Ra6 {[%clk 0:00:14]}  Ke7 {[%clk 0:00:12]} 50. Ke2 {[%clk 0:00:13]}  Rb2+ {[%clk 0:00:13]} 51. Kf3 {[%clk 0:00:13]}  Rb3+ {[%clk 0:00:13]} 52. Kg4 {[%clk 0:00:09]}  Rg3+ {[%clk 0:00:13]} 53. Kf5 {[%clk 0:00:10]}  Rxg2 {[%clk 0:00:14]} 54. Ra7+ {[%clk 0:00:10]}  Kd6 {[%clk 0:00:13]} 55. Kxf6 {[%clk 0:00:10]}  Rf2+ {[%clk 0:00:07]} 56. Kxg5 {[%clk 0:00:10]}  Ke5 {[%clk 0:00:08]} 57. Re7+ {[%clk 0:00:09]}  Kd6 {[%clk 0:00:07]} 58. Re8 {[%clk 0:00:10]}  Rg2+ {[%clk 0:00:04]} 59. Kxh4 {[%clk 0:00:09]}  Rg1 {[%clk 0:00:05]} 60. Kh5 {[%clk 0:00:09]}  Rg2 {[%clk 0:00:05]} 61. h4 {[%clk 0:00:09]}  Rg1 {[%clk 0:00:05]} 62. Kh6 {[%clk 0:00:10]}  Kd7 {[%clk 0:00:05]} 63. Ra8 {[%clk 0:00:09]}  Ke6 {[%clk 0:00:05]} 64. h5 {[%clk 0:00:09]}  Kf7 {[%clk 0:00:05]} 65. Ra7+ {[%clk 0:00:09]}  Kf6 {[%clk 0:00:05]} 66. Ra6+ {[%clk 0:00:09]}  Kf7 {[%clk 0:00:06]} 67. Rg6 {[%clk 0:00:07]}  Re1 {[%clk 0:00:05]} 68. Rg4 {[%clk 0:00:07]}  Ra1 {[%clk 0:00:05]} 69. Kh7 {[%clk 0:00:07]}  Ra5 {[%clk 0:00:03]} 70. Rf4+ {[%clk 0:00:06]}  Ke7 {[%clk 0:00:03]} 71. h6 {[%clk 0:00:07]}  Rg5 {[%clk 0:00:04]} 72. Kh8 {[%clk 0:00:06]}  Rg1 {[%clk 0:00:05]} 73. h7 {[%clk 0:00:07]}  Rg2 {[%clk 0:00:05]} 74. e5 {[%clk 0:00:07]}  Rg1 {[%clk 0:00:06]} 75. Rf5 {[%clk 0:00:06]}  Rg2 {[%clk 0:00:06]} 76. Rf3 {[%clk 0:00:06]}  Rg1 {[%clk 0:00:06]} 77. Ra3 {[%clk 0:00:06]}  Rg5 {[%clk 0:00:07]} 78. Ra7+ {[%clk 0:00:06]}  Ke8 {[%clk 0:00:06]} 79. Rg7 {[%clk 0:00:05]}  Rxe5 {[%clk 0:00:06]} 80. Rg8+ {[%clk 0:00:06]}  Kf7 {[%clk 0:00:06]} 81. Rg7+ {[%clk 0:00:06]}  Kf8 {[%clk 0:00:07]} 82. Rg8+ {[%clk 0:00:05]}  Kf7 {[%clk 0:00:07]} 83. Rg7+ {[%clk 0:00:04]}  Kf8 {[%clk 0:00:07]} 84. Rg1 {[%clk 0:00:04]}  Rf5 {[%clk 0:00:06]} 85. Rg8+ {[%clk 0:00:04]}  Kf7 {[%clk 0:00:06]} 86. Rg7+ {[%clk 0:00:04]}  Kf8 {[%clk 0:00:06]} 87. Rg8+ {[%clk 0:00:05]}  Kf7 {[%clk 0:00:07]} 88. Rg7+ {[%clk 0:00:05]}  Kf8 {[%clk 0:00:07]} 89. Rg8+ {[%clk 0:00:06]} 1/2-1/2


[Site "https://www.chess.com"]

[Event "Titled Tuesday Blitz October 11 Late 2022"]
[White "Vazquez, Guillermo"]
[Black "Mekhane, Adam"]
[WhiteFideId "3702308"]
[BlackFideId "36050601"]
[WhiteElo "2543"]
[BlackElo "2175"]
[Result "1-0"]
[Round "04"]
[TimeControl "180+1"]
[Date "2022.10.11"]
[WhiteClock "0:00:05"]
[BlackClock "0:00:01"]

1. b3 {[%clk 0:02:54]}  e5 {[%clk 0:02:57]} 2. Bb2 {[%clk 0:02:53]}  Nc6 {[%clk 0:02:58]} 3. c4 {[%clk 0:02:53]}  Nf6 {[%clk 0:02:57]} 4. e3 {[%clk 0:02:54]}  Be7 {[%clk 0:02:50]} 5. a3 {[%clk 0:02:50]}  O-O {[%clk 0:02:47]} 6. Qc2 {[%clk 0:02:49]}  d5 {[%clk 0:02:47]} 7. cxd5 {[%clk 0:02:48]}  Nxd5 {[%clk 0:02:43]} 8. Nf3 {[%clk 0:02:48]}  Bf6 {[%clk 0:02:32]} 9. d3 {[%clk 0:02:44]}  g6 {[%clk 0:02:22]} 10. Nbd2 {[%clk 0:02:42]}  Be6 {[%clk 0:02:18]} 11. Be2 {[%clk 0:02:41]}  Bg7 {[%clk 0:02:16]} 12. b4 {[%clk 0:02:40]}  a6 {[%clk 0:02:13]} 13. Rc1 {[%clk 0:02:38]}  h6 {[%clk 0:02:06]} 14. Ne4 {[%clk 0:02:32]}  Qe7 {[%clk 0:01:54]} 15. Qc5 {[%clk 0:02:16]}  Qxc5 {[%clk 0:01:47]} 16. Nxc5 {[%clk 0:01:47]}  Bc8 {[%clk 0:01:47]} 17. Nd2 {[%clk 0:01:43]}  Nde7 {[%clk 0:01:36]} 18. Bf3 {[%clk 0:01:38]}  b6 {[%clk 0:01:34]} 19. Ncb3 {[%clk 0:01:04]}  Bb7 {[%clk 0:01:33]} 20. Ba1 {[%clk 0:00:53]}  Rfd8 {[%clk 0:01:25]} 21. Ke2 {[%clk 0:00:53]}  f5 {[%clk 0:01:05]} 22. Rhd1 {[%clk 0:00:51]}  Rd7 {[%clk 0:01:04]} 23. Nc4 {[%clk 0:00:43]}  Rad8 {[%clk 0:00:58]} 24. Rb1 {[%clk 0:00:28]}  Ba8 {[%clk 0:00:49]} 25. g3 {[%clk 0:00:27]}  Nd5 {[%clk 0:00:39]} 26. Rbc1 {[%clk 0:00:24]}  Nde7 {[%clk 0:00:35]} 27. Bh1 {[%clk 0:00:22]}  h5 {[%clk 0:00:29]} 28. f4 {[%clk 0:00:21]}  exf4 {[%clk 0:00:28]} 29. gxf4 {[%clk 0:00:17]}  Bxa1 {[%clk 0:00:27]} 30. Rxa1 {[%clk 0:00:18]}  Nd5 {[%clk 0:00:27]} 31. Bxd5+ {[%clk 0:00:17]}  Rxd5 {[%clk 0:00:26]} 32. Rac1 {[%clk 0:00:17]}  Re8 {[%clk 0:00:25]} 33. Kf2 {[%clk 0:00:16]}  Rd7 {[%clk 0:00:24]} 34. d4 {[%clk 0:00:15]}  Kh7 {[%clk 0:00:15]} 35. Ne5 {[%clk 0:00:15]}  Nxe5 {[%clk 0:00:15]} 36. dxe5 {[%clk 0:00:16]}  Red8 {[%clk 0:00:12]} 37. Rxd7+ {[%clk 0:00:15]}  Rxd7 {[%clk 0:00:13]} 38. Nd4 {[%clk 0:00:15]}  Kg7 {[%clk 0:00:10]} 39. Rxc7 {[%clk 0:00:08]}  Rxc7 {[%clk 0:00:07]} 40. Ne6+ {[%clk 0:00:09]}  Kf7 {[%clk 0:00:07]} 41. Nxc7 {[%clk 0:00:10]}  Bb7 {[%clk 0:00:07]} 42. Ke2 {[%clk 0:00:06]}  Ke7 {[%clk 0:00:07]} 43. b5 {[%clk 0:00:05]}  a5 {[%clk 0:00:04]} 44. Kd3 {[%clk 0:00:05]}  Kd7 {[%clk 0:00:03]} 45. Na6 {[%clk 0:00:05]}  Ke6 {[%clk 0:00:02]} 46. Kd4 {[%clk 0:00:04]}  h4 {[%clk 0:00:02]} 47. Nc7+ {[%clk 0:00:04]}  Kd7 {[%clk 0:00:01]} 48. Nd5 {[%clk 0:00:05]} 1-0


[Site "https://www.chess.com"]

[Event "Titled Tuesday Blitz October 11 Late 2022"]
[White "Vlassov, Nikolai"]
[Black "Bogaudinov, Rushan"]
[WhiteFideId "4103360"]
[BlackFideId "4129288"]
[WhiteElo "2677"]
[BlackElo "2450"]
[Result "1-0"]
[Round "04"]
[TimeControl "180+1"]
[Date "2022.10.12"]
[WhiteClock "0:00:24"]
[BlackClock "0:00:04"]

1. e4 {[%clk 0:03:00]}  a6 {[%clk 0:02:56]} 2. d4 {[%clk 0:03:00]}  e6 {[%clk 0:02:56]} 3. Nf3 {[%clk 0:02:59]}  Nf6 {[%clk 0:02:52]} 4. Bd3 {[%clk 0:02:59]}  b5 {[%clk 0:02:52]} 5. e5 {[%clk 0:02:58]}  Ng8 {[%clk 0:02:51]} 6. Be4 {[%clk 0:02:56]}  Ra7 {[%clk 0:02:49]} 7. Be3 {[%clk 0:02:56]}  Bb7 {[%clk 0:02:39]} 8. d5 {[%clk 0:02:49]}  Ra8 {[%clk 0:02:17]} 9. dxe6 {[%clk 0:02:49]}  Bxe4 {[%clk 0:02:14]} 10. exf7+ {[%clk 0:02:49]}  Kxf7 {[%clk 0:02:14]} 11. Ng5+ {[%clk 0:02:49]}  Ke8 {[%clk 0:02:13]} 12. Nxe4 {[%clk 0:02:49]}  Nc6 {[%clk 0:02:00]} 13. f4 {[%clk 0:02:41]}  Bb4+ {[%clk 0:01:50]} 14. c3 {[%clk 0:02:40]}  Be7 {[%clk 0:01:51]} 15. O-O {[%clk 0:02:39]}  d5 {[%clk 0:01:41]} 16. exd6 {[%clk 0:02:34]}  Bxd6 {[%clk 0:01:39]} 17. Nxd6+ {[%clk 0:02:21]}  Qxd6 {[%clk 0:01:38]} 18. Qxd6 {[%clk 0:02:20]}  cxd6 {[%clk 0:01:38]} 19. Nd2 {[%clk 0:02:18]}  Nf6 {[%clk 0:01:38]} 20. a4 {[%clk 0:02:15]}  Kf7 {[%clk 0:01:35]} 21. Nf3 {[%clk 0:02:11]}  Rhe8 {[%clk 0:01:31]} 22. Bd4 {[%clk 0:01:54]}  b4 {[%clk 0:01:28]} 23. Rfe1 {[%clk 0:01:47]}  Nd5 {[%clk 0:01:20]} 24. g3 {[%clk 0:01:40]}  h6 {[%clk 0:01:19]} 25. Kf2 {[%clk 0:01:39]}  Na5 {[%clk 0:01:15]} 26. Rad1 {[%clk 0:01:22]}  Rxe1 {[%clk 0:01:02]} 27. Kxe1 {[%clk 0:01:22]}  Re8+ {[%clk 0:01:00]} 28. Kf2 {[%clk 0:01:21]}  bxc3 {[%clk 0:00:46]} 29. Bxc3 {[%clk 0:01:13]}  Nxc3 {[%clk 0:00:45]} 30. bxc3 {[%clk 0:01:13]}  Nc4 {[%clk 0:00:36]} 31. Rd4 {[%clk 0:01:10]}  Rc8 {[%clk 0:00:32]} 32. Ke2 {[%clk 0:01:08]}  Ke6 {[%clk 0:00:30]} 33. Re4+ {[%clk 0:01:04]}  Kd7 {[%clk 0:00:29]} 34. Nd4 {[%clk 0:00:59]}  Rb8 {[%clk 0:00:26]} 35. Nf5 {[%clk 0:00:52]}  g6 {[%clk 0:00:22]} 36. Nxh6 {[%clk 0:00:50]}  Rb2+ {[%clk 0:00:21]} 37. Kd3 {[%clk 0:00:50]}  d5 {[%clk 0:00:21]} 38. Re2 {[%clk 0:00:46]}  Rb3 {[%clk 0:00:19]} 39. Kd4 {[%clk 0:00:42]}  Kc6 {[%clk 0:00:17]} 40. Re6+ {[%clk 0:00:42]}  Nd6 {[%clk 0:00:16]} 41. Nf7 {[%clk 0:00:39]}  Kd7 {[%clk 0:00:14]} 42. Rxd6+ {[%clk 0:00:37]}  Ke7 {[%clk 0:00:14]} 43. Rxg6 {[%clk 0:00:35]}  Kxf7 {[%clk 0:00:15]} 44. Rxa6 {[%clk 0:00:35]}  Rb2 {[%clk 0:00:14]} 45. Kxd5 {[%clk 0:00:32]}  Rxh2 {[%clk 0:00:12]} 46. g4 {[%clk 0:00:33]}  Rd2+ {[%clk 0:00:11]} 47. Ke5 {[%clk 0:00:33]}  Rc2 {[%clk 0:00:12]} 48. Ra7+ {[%clk 0:00:31]}  Kg6 {[%clk 0:00:11]} 49. f5+ {[%clk 0:00:31]}  Kg5 {[%clk 0:00:11]} 50. Rg7+ {[%clk 0:00:31]}  Kh4 {[%clk 0:00:11]} 51. f6 {[%clk 0:00:31]}  Rxc3 {[%clk 0:00:11]} 52. f7 {[%clk 0:00:31]}  Rf3 {[%clk 0:00:11]} 53. a5 {[%clk 0:00:27]}  Rf1 {[%clk 0:00:10]} 54. a6 {[%clk 0:00:27]}  Re1+ {[%clk 0:00:09]} 55. Kd4 {[%clk 0:00:26]}  Rd1+ {[%clk 0:00:09]} 56. Ke3 {[%clk 0:00:27]}  Re1+ {[%clk 0:00:08]} 57. Kd2 {[%clk 0:00:27]}  Re7 {[%clk 0:00:07]} 58. f8=Q {[%clk 0:00:26]}  Re2+ {[%clk 0:00:04]} 59. Kxe2 {[%clk 0:00:25]}  Kg3 {[%clk 0:00:04]} 60. Qf3+ {[%clk 0:00:24]} 1-0


[Site "https://www.chess.com"]

[Event "Titled Tuesday Blitz October 11 Late 2022"]
[White "Vovk, Orest"]
[Black "Aldokhin, Ivan"]
[WhiteFideId "14113490"]
[BlackFideId "24115720"]
[WhiteElo "2422"]
[BlackElo "2594"]
[Result "0-1"]
[Round "04"]
[TimeControl "180+1"]
[Date "2022.10.12"]
[WhiteClock "0:01:37"]
[BlackClock "0:01:35"]

1. d4 {[%clk 0:02:52]}  Nf6 {[%clk 0:02:59]} 2. Bg5 {[%clk 0:02:50]}  e6 {[%clk 0:02:58]} 3. Bxf6 {[%clk 0:02:49]}  Qxf6 {[%clk 0:02:57]} 4. e4 {[%clk 0:02:50]}  d6 {[%clk 0:02:56]} 5. Nf3 {[%clk 0:02:49]}  Nd7 {[%clk 0:02:50]} 6. Bd3 {[%clk 0:02:50]}  g6 {[%clk 0:02:50]} 7. Qe2 {[%clk 0:02:50]}  Bg7 {[%clk 0:02:50]} 8. O-O {[%clk 0:02:51]}  O-O {[%clk 0:02:48]} 9. Nc3 {[%clk 0:02:52]}  a6 {[%clk 0:02:47]} 10. e5 {[%clk 0:02:49]}  dxe5 {[%clk 0:02:46]} 11. Ne4 {[%clk 0:02:49]}  Qe7 {[%clk 0:02:41]} 12. c3 {[%clk 0:02:47]}  f5 {[%clk 0:02:38]} 13. Neg5 {[%clk 0:02:42]}  e4 {[%clk 0:02:26]} 14. Bc4 {[%clk 0:02:41]}  Nb6 {[%clk 0:02:18]} 15. Nxe4 {[%clk 0:02:26]}  Nxc4 {[%clk 0:02:03]} 16. Nfd2 {[%clk 0:02:27]}  Nxd2 {[%clk 0:02:00]} 17. Nxd2 {[%clk 0:02:05]}  e5 {[%clk 0:01:59]} 18. dxe5 {[%clk 0:01:52]}  Qxe5 {[%clk 0:01:56]} 19. Qc4+ {[%clk 0:01:52]}  Be6 {[%clk 0:01:56]} 20. Qb4 {[%clk 0:01:52]}  Bd5 {[%clk 0:01:44]} 21. Rfe1 {[%clk 0:01:50]}  Qd6 {[%clk 0:01:41]} 22. Qxd6 {[%clk 0:01:44]}  cxd6 {[%clk 0:01:40]} 23. Rad1 {[%clk 0:01:45]}  Rfe8 {[%clk 0:01:40]} 24. Rxe8+ {[%clk 0:01:42]}  Rxe8 {[%clk 0:01:39]} 25. Nf1 {[%clk 0:01:42]}  Bxa2 {[%clk 0:01:37]} 26. Rxd6 {[%clk 0:01:41]}  Re1 {[%clk 0:01:36]} 27. Rd8+ {[%clk 0:01:37]}  Bf8 {[%clk 0:01:36]} 28. Re8 {[%clk 0:01:37]}  Rxe8 {[%clk 0:01:35]} 0-1


[Site "https://www.chess.com"]

[Event "Titled Tuesday Blitz October 11 Late 2022"]
[White "Vujcic, Milena"]
[Black "Shohat, Yotam"]
[WhiteFideId "954748"]
[BlackFideId "2813955"]
[WhiteElo "1931"]
[BlackElo "2199"]
[Result "1/2-1/2"]
[Round "04"]
[TimeControl "180+1"]
[Date "2022.10.12"]
[WhiteClock "0:01:05"]
[BlackClock "0:02:33"]

1. e4 {[%clk 0:03:00]}  c5 {[%clk 0:02:59]} 2. Nf3 {[%clk 0:02:59]}  d6 {[%clk 0:03:00]} 3. d4 {[%clk 0:02:59]}  cxd4 {[%clk 0:03:01]} 4. Nxd4 {[%clk 0:02:59]}  Nf6 {[%clk 0:03:00]} 5. Nc3 {[%clk 0:03:00]}  a6 {[%clk 0:03:00]} 6. Bg5 {[%clk 0:03:00]}  e6 {[%clk 0:03:00]} 7. f4 {[%clk 0:03:00]}  Nbd7 {[%clk 0:03:00]} 8. Qf3 {[%clk 0:02:57]}  Qc7 {[%clk 0:03:00]} 9. O-O-O {[%clk 0:02:57]}  b5 {[%clk 0:02:59]} 10. e5 {[%clk 0:02:49]}  Bb7 {[%clk 0:02:57]} 11. Qh3 {[%clk 0:02:49]}  dxe5 {[%clk 0:02:57]} 12. Nxe6 {[%clk 0:02:49]}  fxe6 {[%clk 0:02:58]} 13. Qxe6+ {[%clk 0:02:49]}  Be7 {[%clk 0:02:58]} 14. Bxb5 {[%clk 0:01:34]}  axb5 {[%clk 0:02:57]} 15. Nxb5 {[%clk 0:01:32]}  Qc6 {[%clk 0:02:56]} 16. Nd6+ {[%clk 0:01:19]}  Kd8 {[%clk 0:02:44]} 17. Nf7+ {[%clk 0:01:19]}  Ke8 {[%clk 0:02:36]} 18. Nd6+ {[%clk 0:01:13]}  Kd8 {[%clk 0:02:35]} 19. Nf7+ {[%clk 0:01:08]}  Ke8 {[%clk 0:02:35]} 20. Nd6+ {[%clk 0:01:05]}  Kd8 {[%clk 0:02:33]} 1/2-1/2


[Site "https://www.chess.com"]

[Event "Titled Tuesday Blitz October 11 Late 2022"]
[White "Wagner, Dennis"]
[Black "Zeynalli, Rashad"]
[WhiteFideId "24650684"]
[BlackFideId "13403320"]
[WhiteElo "2777"]
[BlackElo "2575"]
[Result "0-1"]
[Round "04"]
[TimeControl "180+1"]
[Date "2022.10.12"]
[WhiteClock "0:00:03"]
[BlackClock "0:00:12"]

1. d4 {[%clk 0:03:00]}  Nf6 {[%clk 0:02:59]} 2. c4 {[%clk 0:03:00]}  e6 {[%clk 0:02:59]} 3. Nf3 {[%clk 0:02:59]}  d5 {[%clk 0:02:59]} 4. Nc3 {[%clk 0:02:58]}  c5 {[%clk 0:03:00]} 5. e3 {[%clk 0:02:58]}  Nc6 {[%clk 0:02:59]} 6. a3 {[%clk 0:02:57]}  Ne4 {[%clk 0:02:55]} 7. cxd5 {[%clk 0:02:53]}  Nxc3 {[%clk 0:02:50]} 8. bxc3 {[%clk 0:02:52]}  exd5 {[%clk 0:02:51]} 9. h3 {[%clk 0:02:46]}  Bd6 {[%clk 0:02:37]} 10. Bd3 {[%clk 0:02:46]}  c4 {[%clk 0:02:37]} 11. Bc2 {[%clk 0:02:46]}  f5 {[%clk 0:02:37]} 12. a4 {[%clk 0:02:45]}  Qe7 {[%clk 0:02:36]} 13. O-O {[%clk 0:02:39]}  O-O {[%clk 0:02:02]} 14. Rb1 {[%clk 0:02:38]}  Kh8 {[%clk 0:01:54]} 15. Re1 {[%clk 0:02:38]}  Rg8 {[%clk 0:01:50]} 16. Nh2 {[%clk 0:02:23]}  g5 {[%clk 0:01:35]} 17. Qh5 {[%clk 0:02:22]}  Be6 {[%clk 0:01:26]} 18. Nf1 {[%clk 0:01:55]}  Bf7 {[%clk 0:01:17]} 19. Qe2 {[%clk 0:01:40]}  Be6 {[%clk 0:01:08]} 20. Ng3 {[%clk 0:01:40]}  Raf8 {[%clk 0:01:05]} 21. Qh5 {[%clk 0:01:33]}  Rg6 {[%clk 0:00:52]} 22. Bd2 {[%clk 0:01:25]}  Qg7 {[%clk 0:00:51]} 23. Rb5 {[%clk 0:01:19]}  b6 {[%clk 0:00:38]} 24. Qf3 {[%clk 0:01:06]}  g4 {[%clk 0:00:35]} 25. hxg4 {[%clk 0:01:03]}  Rxg4 {[%clk 0:00:27]} 26. Rxd5 {[%clk 0:00:54]}  Bxg3 {[%clk 0:00:22]} 27. Rxf5 {[%clk 0:00:32]}  Bxf5 {[%clk 0:00:20]} 28. Bxf5 {[%clk 0:00:33]}  Rg5 {[%clk 0:00:17]} 29. e4 {[%clk 0:00:33]}  Bh4 {[%clk 0:00:13]} 30. Qh3 {[%clk 0:00:17]}  Ne7 {[%clk 0:00:09]} 31. Bxg5 {[%clk 0:00:09]}  Bxg5 {[%clk 0:00:09]} 32. Bg4 {[%clk 0:00:08]}  Qf6 {[%clk 0:00:06]} 33. Re2 {[%clk 0:00:08]}  a6 {[%clk 0:00:05]} 34. g3 {[%clk 0:00:08]}  b5 {[%clk 0:00:05]} 35. f4 {[%clk 0:00:08]}  Bxf4 {[%clk 0:00:05]} 36. gxf4 {[%clk 0:00:09]}  Qxf4 {[%clk 0:00:05]} 37. e5 {[%clk 0:00:06]}  Qc1+ {[%clk 0:00:04]} 38. Kh2 {[%clk 0:00:05]}  Ng6 {[%clk 0:00:04]} 39. Qg3 {[%clk 0:00:03]}  b4 {[%clk 0:00:03]} 40. cxb4 {[%clk 0:00:03]}  c3 {[%clk 0:00:04]} 41. e6 {[%clk 0:00:04]}  c2 {[%clk 0:00:03]} 42. e7 {[%clk 0:00:04]}  Re8 {[%clk 0:00:02]} 43. d5 {[%clk 0:00:03]}  Qf4 {[%clk 0:00:02]} 44. Qxf4 {[%clk 0:00:02]}  Nxf4 {[%clk 0:00:03]} 45. Rxc2 {[%clk 0:00:03]}  Nxd5 {[%clk 0:00:03]} 46. b5 {[%clk 0:00:03]}  axb5 {[%clk 0:00:03]} 47. axb5 {[%clk 0:00:03]}  Ne3 {[%clk 0:00:03]} 48. Bf3 {[%clk 0:00:02]}  Nxc2 {[%clk 0:00:03]} 49. b6 {[%clk 0:00:03]}  Rxe7 {[%clk 0:00:04]} 50. Bc6 {[%clk 0:00:02]}  Rf7 {[%clk 0:00:02]} 51. b7 {[%clk 0:00:02]}  Rf8 {[%clk 0:00:03]} 52. Bd7 {[%clk 0:00:02]}  Rb8 {[%clk 0:00:04]} 53. Bc8 {[%clk 0:00:03]}  Nd4 {[%clk 0:00:04]} 54. Kg3 {[%clk 0:00:03]}  Nc6 {[%clk 0:00:05]} 55. Kf4 {[%clk 0:00:03]}  Na5 {[%clk 0:00:06]} 56. Ke5 {[%clk 0:00:03]}  Nxb7 {[%clk 0:00:07]} 57. Bf5 {[%clk 0:00:03]}  Nc5 {[%clk 0:00:07]} 58. Kd5 {[%clk 0:00:03]}  Nb3 {[%clk 0:00:08]} 59. Kc4 {[%clk 0:00:03]}  Kg7 {[%clk 0:00:09]} 60. Be4 {[%clk 0:00:03]}  h6 {[%clk 0:00:09]} 61. Bc2 {[%clk 0:00:04]}  Na5+ {[%clk 0:00:10]} 62. Kd5 {[%clk 0:00:04]}  Rc8 {[%clk 0:00:11]} 63. Ba4 {[%clk 0:00:04]}  Rd8+ {[%clk 0:00:11]} 64. Ke6 {[%clk 0:00:05]}  Nc4 {[%clk 0:00:11]} 65. Ke7 {[%clk 0:00:05]}  Rd6 {[%clk 0:00:12]} 66. Bb3 {[%clk 0:00:04]}  Rd4 {[%clk 0:00:12]} 67. Ke6 {[%clk 0:00:04]}  Re4+ {[%clk 0:00:12]} 68. Kd5 {[%clk 0:00:04]}  Rf4 {[%clk 0:00:12]} 69. Bxc4 {[%clk 0:00:05]}  Kg6 {[%clk 0:00:12]} 70. Bd3+ {[%clk 0:00:05]}  Kg5 {[%clk 0:00:13]} 71. Ke5 {[%clk 0:00:06]}  h5 {[%clk 0:00:13]} 72. Bb5 {[%clk 0:00:04]}  h4 {[%clk 0:00:14]} 73. Bd7 {[%clk 0:00:05]}  Rb4 {[%clk 0:00:12]} 74. Bc8 {[%clk 0:00:05]}  Rc4 {[%clk 0:00:11]} 75. Bd7 {[%clk 0:00:05]}  Kh5 {[%clk 0:00:11]} 76. Be6 {[%clk 0:00:03]}  Rb4 {[%clk 0:00:11]} 77. Bd7 {[%clk 0:00:02]}  Rg4 {[%clk 0:00:11]} 78. Be8+ {[%clk 0:00:02]}  Kg5 {[%clk 0:00:11]} 79. Bd7 {[%clk 0:00:02]}  h3 {[%clk 0:00:12]} 80. Bc6 {[%clk 0:00:02]}  Kh4 {[%clk 0:00:11]} 81. Bf3 {[%clk 0:00:02]}  Kg3 {[%clk 0:00:11]} 82. Bxg4 {[%clk 0:00:02]}  Kxg4 {[%clk 0:00:11]} 83. Ke4 {[%clk 0:00:03]}  h2 {[%clk 0:00:12]} 0-1


[Site "https://www.chess.com"]

[Event "Titled Tuesday Blitz October 11 Late 2022"]
[White "Yuan, Qingyu"]
[Black "Yi, Richard"]
[WhiteFideId "8609772"]
[BlackFideId "2079518"]
[WhiteElo "2731"]
[BlackElo "2550"]
[Result "1-0"]
[Round "04"]
[TimeControl "180+1"]
[Date "2022.10.12"]
[WhiteClock "0:01:04"]
[BlackClock "0:00:36"]

1. d4 {[%clk 0:03:00]}  d5 {[%clk 0:02:58]} 2. Bf4 {[%clk 0:02:59]}  c5 {[%clk 0:02:53]} 3. c3 {[%clk 0:02:41]}  Nc6 {[%clk 0:02:50]} 4. e3 {[%clk 0:02:41]}  cxd4 {[%clk 0:02:43]} 5. exd4 {[%clk 0:02:39]}  Nf6 {[%clk 0:02:43]} 6. Bd3 {[%clk 0:02:39]}  Bg4 {[%clk 0:02:42]} 7. Ne2 {[%clk 0:02:39]}  e6 {[%clk 0:02:33]} 8. Qb3 {[%clk 0:02:32]}  Qd7 {[%clk 0:02:30]} 9. Nd2 {[%clk 0:02:29]}  Be7 {[%clk 0:02:22]} 10. Ng3 {[%clk 0:02:29]}  Nh5 {[%clk 0:02:16]} 11. Be3 {[%clk 0:02:23]}  O-O {[%clk 0:02:10]} 12. f3 {[%clk 0:02:01]}  Nxg3 {[%clk 0:01:48]} 13. Bxh7+ {[%clk 0:02:00]}  Kxh7 {[%clk 0:01:39]} 14. hxg3+ {[%clk 0:02:01]}  Kg8 {[%clk 0:01:35]} 15. fxg4 {[%clk 0:02:00]}  Rac8 {[%clk 0:01:23]} 16. O-O-O {[%clk 0:01:49]}  a5 {[%clk 0:01:09]} 17. Rh3 {[%clk 0:01:41]}  f5 {[%clk 0:01:05]} 18. gxf5 {[%clk 0:01:17]}  Rxf5 {[%clk 0:01:06]} 19. g4 {[%clk 0:01:14]}  Rff8 {[%clk 0:01:05]} 20. Rdh1 {[%clk 0:01:11]}  Nb4 {[%clk 0:01:02]} 21. Kb1 {[%clk 0:01:08]}  a4 {[%clk 0:00:51]} 22. Qd1 {[%clk 0:01:05]}  Nd3 {[%clk 0:00:39]} 23. Rh8+ {[%clk 0:01:04]}  Kf7 {[%clk 0:00:39]} 24. Qf1+ {[%clk 0:01:05]}  Kg6 {[%clk 0:00:36]} 25. Qxd3+ {[%clk 0:01:04]} 1-0


[Site "https://www.chess.com"]